bitfinex-derivatives/quotes_BTCF0:USTF0_20251202
["timestamp","ask_amount","ask_price","bid_price","bid_amount"]
[1764686632430,0.3608,88703.0,88690.0,0.3139691]
[1764686632824,0.3608,88703.0,88692.0,0.001]
[1764686633225,0.3608,88703.0,88690.0,0.3139691]
[1764686633420,0.001,88691.0,88690.0,0.3139691]
[1764686633621,0.35883,88691.0,88690.0,0.3139691]
[1764686634135,0.16106802,88700.0,88690.0,0.3139691]
[1764686634433,0.001,88703.0,88702.0,0.3726533]
[1764686634630,0.001,88703.0,88702.0,0.36138]
[1764686634830,0.001,88703.0,88701.0,0.0112734]
[1764686635133,0.001,88703.0,88692.0,0.3608]
[1764686636120,0.001,88703.0,88702.0,0.36138]
[1764686636322,0.0001691,88710.0,88709.0,0.36138]
[1764686636834,0.0001691,88710.0,88702.0,0.0112733]
[1764686637036,0.0001691,88710.0,88701.0,0.3609691]
[1764686637944,0.0001691,88710.0,88701.0,0.5524224]
[1764686638433,0.0001691,88710.0,88701.0,0.3609691]
[1764686638627,0.0001691,88710.0,88709.0,0.36138]
[1764686638832,0.0001691,88710.0,88709.0,0.72218]
[1764686639035,0.0021691,88710.0,88709.0,0.72318]
[1764686639829,0.0001691,88710.0,88709.0,0.72218]
[1764686640029,0.0011691,88710.0,88709.0,0.72218]
[1764686640729,0.0021691,88710.0,88709.0,0.72318]
[1764686641245,0.0031691,88710.0,88709.0,0.72318]
[1764686641433,0.0031691,88710.0,88709.0,0.001]
[1764686641434,0.7609991,88710.0,88709.0,0.001]
[1764686641745,0.7609991,88710.0,88657.0,0.3608]
[1764686641746,0.0112737,88699.0,88657.0,0.3608]
[1764686642042,0.10496,88704.0,88646.0,0.00028202]
[1764686642043,0.0112789,88658.0,88646.0,0.00028202]
[1764686642237,0.3608,88650.0,88646.0,0.00028202]
[1764686642441,0.35783,88647.0,88646.0,0.00028202]
[1764686642633,0.0112804,88646.0,88638.0,0.0001692]
[1764686642840,0.4950313,88639.0,88638.0,0.0001692]
[1764686643041,0.4950313,88639.0,88608.0,0.10711]
[1764686643042,0.0112842,88617.0,88608.0,0.10711]
[1764686643241,0.0112842,88617.0,88587.0,0.14692361]
[1764686643242,0.3720846,88614.0,88601.0,0.011286]
[1764686643542,0.3608,88623.0,88587.0,0.10711]
[1764686643543,0.0112835,88622.0,88613.0,0.48739]
[1764686643729,0.0112835,88622.0,88613.0,0.4986746]
[1764686644038,0.00011107,88621.0,88618.0,0.011284]
[1764686644437,0.00011107,88621.0,88604.0,0.3608]
[1764686644628,0.0112843,88616.0,88605.0,0.0112856]
[1764686644829,0.00011107,88621.0,88620.0,0.0112837]
[1764686645043,0.00011107,88621.0,88620.0,0.4986737]
[1764686646139,0.00211107,88621.0,88620.0,0.4986737]
[1764686646641,0.3608,88640.0,88639.0,0.4986713]
[1764686647139,0.53052,88664.0,88639.0,0.4986713]
[1764686647140,0.3608,88658.0,88655.0,0.0112792]
[1764686647344,0.45220899,88665.0,88662.0,0.0112783]
[1764686647539,0.45220899,88665.0,88664.0,0.48739]
[1764686647846,0.0001692,88672.0,88671.0,0.0112773]
[1764686648047,0.0001692,88672.0,88671.0,0.2589273]
[1764686648243,0.0001692,88672.0,88671.0,0.4986673]
[1764686649335,0.0021692,88672.0,88671.0,0.4986673]
[1764686649532,0.16106802,88690.0,88687.0,0.0112751]
[1764686649844,0.46576,88704.0,88700.0,0.0112735]
[1764686649845,0.3608,88704.0,88700.0,0.0112735]
[1764686650347,0.3608,88713.0,88709.0,0.0112723]
[1764686650743,0.3608,88713.0,88712.0,0.24765]
[1764686650933,0.00016909,88720.0,88716.0,0.0112715]
[1764686651445,0.3608,88732.0,88725.0,0.48739]
[1764686651642,0.3608,88755.0,88741.0,0.48739]
[1764686651845,0.3608,88755.0,88730.0,0.10455]
[1764686651846,0.3608,88755.0,88742.0,0.0112682]
[1764686652443,0.3608,88755.0,88740.0,0.00016909]
[1764686652444,0.3608,88746.0,88740.0,0.00016909]
[1764686652839,0.3608,88753.0,88744.0,0.0112679]
[1764686653034,0.3608,88753.0,88748.0,0.0112674]
[1764686653230,0.3608,88753.0,88741.0,0.007]
[1764686653445,0.3608,88753.0,88742.0,0.0112682]
[1764686653647,0.3608,88753.0,88746.0,0.0112676]
[1764686654035,0.3608,88753.0,88750.0,0.0112672]
[1764686654241,0.001,88755.0,88750.0,0.0112672]
[1764686654839,0.00016909,88757.0,88756.0,0.48739]
[1764686655333,0.16106802,88780.0,88765.0,0.48739]
[1764686655534,0.1001384,88781.0,88765.0,0.48739]
[1764686655746,0.3608,88783.0,88765.0,0.48739]
[1764686655951,0.09103903,88788.0,88778.0,0.0112635]
[1764686656151,0.09103903,88788.0,88780.0,0.3608]
[1764686656447,0.3608,88786.0,88774.0,0.00016898]
[1764686656833,0.3608,88776.0,88774.0,0.00016898]
[1764686657035,0.48375,88775.0,88774.0,0.00016898]
[1764686657244,0.3608,88776.0,88775.0,0.48739]
[1764686657546,0.3608,88797.0,88786.0,0.0112625]
[1764686657750,0.3608,88805.0,88774.0,0.00016898]
[1764686657751,0.0112606,88802.0,88782.0,0.3608]
[1764686657940,0.3608,88796.0,88783.0,0.011263]
[1764686658650,0.003,88786.0,88783.0,0.011263]
[1764686658951,0.003,88786.0,88785.0,0.24765]
[1764686659134,0.00116898,88792.0,88791.0,0.498652]
[1764686659336,0.24514151,88806.0,88805.0,0.0112602]
[1764686659543,0.24514151,88806.0,88799.0,0.372061]
[1764686659742,0.24514151,88806.0,88783.0,0.003]
[1764686659937,0.3608,88796.0,88783.0,0.003]
[1764686660143,0.00028151,88806.0,88788.0,0.3608]
[1764686660344,0.00045049,88806.0,88794.0,0.0112615]
[1764686660544,0.00045049,88806.0,88788.0,0.36096898]
[1764686660737,0.00045049,88806.0,88805.0,0.48739]
[1764686661049,0.3608,88826.0,88816.0,0.0112588]
[1764686661239,0.3608,88826.0,88813.0,0.3608]
[1764686661644,0.0112577,88825.0,88813.0,0.3608]
[1764686661943,0.24486,88806.0,88805.0,0.5]
[1764686662152,0.3608,88806.0,88805.0,0.98739]
[1764686662346,0.3608,88819.0,88814.0,0.24765]
[1764686662647,0.3608,88819.0,88806.0,0.10455]
[1764686662648,0.3608,88819.0,88818.0,0.48739]
[1764686663254,0.3608,88819.0,88802.0,0.3608]
[1764686663255,0.0112591,88814.0,88798.0,0.3608]
[1764686663552,0.001,88806.0,88801.0,0.0112606]
[1764686663744,0.001,88806.0,88796.0,0.0112613]
[1764686664339,0.001,88806.0,88802.0,0.0112606]
[1764686664650,0.001,88806.0,88788.0,0.3608]
[1764686664651,0.002,88806.0,88788.0,0.3608]
[1764686664855,0.08870716,88832.0,88818.0,0.4986486]
[1764686665150,0.08870716,88832.0,88827.0,0.84819]
[1764686665548,0.08870716,88832.0,88827.0,0.3608]
[1764686665751,0.011256,88839.0,88827.0,0.3608]
[1764686666248,0.48686075,88828.0,88827.0,0.3608]
[1764686666439,0.24797075,88828.0,88827.0,0.3608]
[1764686666638,0.00311075,88828.0,88827.0,0.84819]
[1764686666842,0.00011075,88828.0,88827.0,0.3608]
[1764686667043,0.00011075,88828.0,88827.0,0.3618]
[1764686667455,0.00028139,88846.0,88845.0,0.48739]
[1764686667655,0.3608,88873.0,88848.0,0.10455]
[1764686667961,0.3608,88877.0,88863.0,0.3608]
[1764686668155,0.62,88876.0,88868.0,0.0112522]
[1764686668453,0.62,88876.0,88863.0,0.3608]
[1764686668454,0.62,88876.0,88863.0,0.36096878]
[1764686668649,0.48375,88872.0,88863.0,0.36096878]
[1764686668950,0.113,88863.0,88850.0,0.3608]
[1764686669145,0.16106802,88860.0,88850.0,0.3608]
[1764686669349,0.48375,88851.0,88850.0,0.3608]
[1764686669548,0.113,88863.0,88850.0,0.3608]
[1764686669851,0.48375,88851.0,88850.0,0.3608]
[1764686670049,0.48375,88851.0,88842.0,0.00016878]
[1764686670255,0.00016842,88859.0,88850.0,0.3608]
[1764686670459,0.001,88876.0,88858.0,0.3608]
[1764686670653,0.48375,88872.0,88871.0,0.3608]
[1764686671340,0.62,88880.0,88871.0,0.3608]
[1764686671540,1.10375,88880.0,88879.0,0.3608]
[1764686672345,0.01071025,88902.0,88900.0,0.30348]
[1764686672548,0.01108644,88932.0,88901.0,0.15174]
[1764686672549,0.35757604,88920.0,88901.0,0.15174]
[1764686672753,0.35757604,88920.0,88904.0,0.3608]
[1764686672754,0.14318,88920.0,88904.0,0.3608]
[1764686672948,0.14318,88920.0,88912.0,0.3608]
[1764686673851,0.0112464,88914.0,88912.0,0.3608]
[1764686674047,0.49951,88913.0,88912.0,0.3608]
[1764686674247,0.0112476,88906.0,88904.0,0.3608]
[1764686674447,0.49951,88905.0,88904.0,0.3608]
[1764686674643,0.3608,88919.0,88900.0,0.014]
[1764686674644,0.49951,88901.0,88900.0,0.014]
[1764686674852,0.0112511,88877.0,88876.0,0.3608]
[1764686675056,0.49951,88877.0,88876.0,0.3608]
[1764686675258,0.3608,88892.0,88880.0,0.4489]
[1764686675476,0.0112483,88899.0,88889.0,0.3608]
[1764686675762,0.5107595,88890.0,88889.0,0.3608]
[1764686675944,0.51076,88886.0,88885.0,0.00016878]
[1764686676152,0.49951,88877.0,88876.0,0.3608]
[1764686676451,0.0112521,88869.0,88868.0,0.3608]
[1764686676656,0.5107621,88869.0,88868.0,0.3608]
[1764686676950,0.49951,88869.0,88868.0,0.3608]
[1764686677152,0.00116878,88877.0,88876.0,0.0112512]
[1764686677350,0.00116878,88877.0,88876.0,0.3608]
[1764686677545,0.00116878,88877.0,88876.0,0.3618]
[1764686677946,0.00016878,88877.0,88876.0,0.3618]
[1764686678550,0.00016878,88877.0,88876.0,0.58625]
[1764686678754,0.00016878,88877.0,88876.0,0.8107]
[1764686678961,0.00016878,88877.0,88876.0,0.8097]
[1764686679749,0.00216878,88877.0,88876.0,0.8097]
[1764686679952,0.3608,88922.0,88887.0,0.4489]
[1764686680150,0.34184,88909.0,88894.0,0.3608]
[1764686680465,0.49951,88895.0,88894.0,0.3608]
[1764686681357,0.1485,88901.0,88886.0,0.00016878]
[1764686681358,0.49951,88887.0,88886.0,0.00016878]
[1764686681559,0.1485,88901.0,88886.0,0.36096878]
[1764686681761,0.0112483,88900.0,88886.0,0.36096878]
[1764686681955,0.24371,88887.0,88886.0,0.36096878]
[1764686682156,0.0112486,88897.0,88886.0,0.36096878]
[1764686682553,0.24371,88887.0,88886.0,0.36096878]
[1764686682753,0.49951,88887.0,88886.0,0.36096878]
[1764686683052,0.21439604,88900.0,88886.0,0.58541878]
[1764686683253,0.0112498,88888.0,88886.0,0.36096878]
[1764686683462,0.49951,88887.0,88886.0,0.36096878]
[1764686683667,0.49951,88887.0,88886.0,0.00016878]
[1764686683962,0.49951,88868.0,88867.0,0.3608]
[1764686685052,0.00016878,88876.0,88867.0,0.81002]
[1764686685258,0.51093018,88876.0,88867.0,0.3608]
[1764686685561,0.00016878,88876.0,88868.0,0.0112523]
[1764686685769,0.53224,88875.0,88867.0,0.3608]
[1764686686262,0.00016878,88876.0,88875.0,0.22461]
[1764686686866,0.00316878,88876.0,88870.0,0.372052]
[1764686687368,0.00416878,88876.0,88870.0,0.372052]
[1764686687762,0.00416878,88876.0,88873.0,0.0112515]
[1764686687963,0.00416878,88876.0,88871.0,0.0112519]
[1764686688159,0.00416878,88876.0,88870.0,0.3608]
[1764686688365,0.00416878,88876.0,88870.0,0.3720519]
[1764686689366,0.00416878,88876.0,88870.0,0.3608]
[1764686689563,0.49951,88864.0,88863.0,0.3608]
[1764686690257,0.1485,88866.0,88863.0,0.3608]
[1764686690664,0.49951,88864.0,88863.0,0.3608]
[1764686690868,0.21439604,88873.0,88863.0,0.3608]
[1764686691068,0.0112514,88875.0,88872.0,0.3608]
[1764686691569,0.00016878,88876.0,88872.0,0.3608]
[1764686691772,0.0112514,88875.0,88872.0,0.3608]
[1764686691955,0.24371,88873.0,88872.0,0.3608]
[1764686692160,0.49951,88873.0,88872.0,0.3608]
[1764686692954,0.00016878,88876.0,88863.0,0.3608]
[1764686693165,0.21439604,88873.0,88863.0,0.3608]
[1764686693372,0.00016878,88876.0,88863.0,0.3720529]
[1764686693373,0.0112522,88869.0,88863.0,0.3720529]
[1764686693569,0.003,88875.0,88863.0,0.3720529]
[1764686693867,0.0112515,88874.0,88871.0,0.3608]
[1764686694058,0.0112515,88874.0,88863.0,0.3720529]
[1764686694059,0.0112527,88865.0,88863.0,0.3608]
[1764686694471,0.24371,88864.0,88863.0,0.3608]
[1764686694968,0.0112526,88866.0,88863.0,0.3608]
[1764686695160,0.001,88873.0,88872.0,0.44922]
[1764686695361,0.001,88873.0,88872.0,0.81002]
[1764686695565,0.004,88875.0,88874.0,0.44922]
[1764686696362,0.00016878,88876.0,88875.0,0.44922]
[1764686696875,0.00016878,88876.0,88875.0,0.8212714]
[1764686697980,0.00016878,88876.0,88875.0,0.3608]
[1764686698366,0.64817878,88876.0,88875.0,0.3608]
[1764686698962,0.00016878,88876.0,88875.0,0.81002]
[1764686699559,0.0112488,88896.0,88879.0,0.0112507]
[1764686699765,0.53216,88891.0,88885.0,0.58541]
[1764686700180,0.22564434,88900.0,88885.0,0.81002]
[1764686700376,0.53216,88894.0,88885.0,0.81002]
[1764686700575,0.53232878,88894.0,88885.0,0.81002]
[1764686700777,0.00016878,88894.0,88885.0,0.81002]
[1764686701078,0.00016878,88894.0,88893.0,0.4604691]
[1764686701273,0.00016878,88894.0,88893.0,0.81002]
[1764686701778,0.49967878,88894.0,88893.0,0.3608]
[1764686701983,0.49967878,88894.0,88885.0,0.50016878]
[1764686701984,0.51076,88886.0,88885.0,0.50016878]
[1764686702363,0.51076,88886.0,88885.0,0.40016878]
[1764686702580,0.5107617,88872.0,88871.0,0.3608]
[1764686702977,0.49951,88872.0,88871.0,0.3608]
[1764686703178,0.5107617,88872.0,88871.0,0.3608]
[1764686703567,0.49951,88872.0,88871.0,0.3608]
[1764686703779,0.06578429,88894.0,88885.0,0.48435]
[1764686704083,0.00516878,88894.0,88885.0,0.48435]
[1764686704575,0.00516878,88894.0,88881.0,0.39030412]
[1764686704770,0.2519,88892.0,88891.0,0.3608]
[1764686704963,0.5011893,88892.0,88883.0,0.00016878]
[1764686705167,0.00016878,88894.0,88893.0,0.24924]
[1764686705577,0.0112472,88908.0,88903.0,0.24924]
[1764686705775,0.06061551,88918.0,88911.0,0.24924]
[1764686706081,0.5435657,88920.0,88911.0,0.24924]
[1764686706383,0.06061551,88935.0,88925.0,0.48435]
[1764686706570,0.00016846,88934.0,88925.0,0.84515]
[1764686706773,0.00016846,88934.0,88925.0,0.3608]
[1764686706774,0.2519,88926.0,88925.0,0.3608]
[1764686707084,0.007,88920.0,88917.0,0.36096868]
[1764686707278,0.008,88920.0,88917.0,0.36096868]
[1764686707679,0.008,88920.0,88919.0,0.24924]
[1764686708282,0.2519,88918.0,88917.0,0.36096868]
[1764686708484,0.008,88920.0,88917.0,0.36096868]
[1764686708683,0.001,88920.0,88917.0,0.36096868]
[1764686708986,0.001,88920.0,88919.0,0.8563958]
[1764686709183,0.009,88926.0,88925.0,0.48435]
[1764686709374,0.01,88926.0,88925.0,0.48435]
[1764686709685,0.00016846,88934.0,88933.0,0.48435]
[1764686709874,0.00016846,88934.0,88933.0,0.84515]
[1764686710070,0.00016846,88934.0,88933.0,0.61004]
[1764686710276,0.00016846,88934.0,88933.0,0.84515]
[1764686710469,0.00840704,88947.0,88933.0,0.84515]
[1764686710678,0.48994,88942.0,88933.0,0.3608]
[1764686711083,0.00840704,88947.0,88941.0,0.3608]
[1764686711295,0.00840704,88947.0,88946.0,0.48435]
[1764686711777,0.00840704,88947.0,88946.0,0.84515]
[1764686711977,0.00840704,88947.0,88946.0,0.3608]
[1764686712278,0.00840704,88947.0,88946.0,0.61004]
[1764686712486,0.26030704,88947.0,88946.0,0.3608]
[1764686712684,0.00840704,88947.0,88946.0,0.3608]
[1764686712882,0.00840704,88947.0,88946.0,0.84515]
[1764686713484,0.00840704,88947.0,88946.0,0.84915]
[1764686713676,0.00840704,88947.0,88946.0,0.79915]
[1764686713877,0.0031664,88975.0,88958.0,0.48435]
[1764686714082,0.0031664,88975.0,88974.0,0.48435]
[1764686714290,0.0031664,88975.0,88974.0,0.84515]
[1764686715277,0.0031664,88975.0,88974.0,0.91882]
[1764686715880,0.14992661,89000.0,88976.0,0.0112386]
[1764686716088,0.14992661,89000.0,88986.0,0.3608]
[1764686716287,0.06,89000.0,88987.0,0.0112372]
[1764686716487,0.06,89000.0,88999.0,0.24924]
[1764686716896,0.06,89000.0,88999.0,0.48435]
[1764686717276,0.48994,88998.0,88997.0,0.3608]
[1764686717589,0.0504806,89000.0,88997.0,0.3608]
[1764686717791,0.48994,88998.0,88983.0,0.3608]
[1764686717985,0.0504806,89000.0,88996.0,0.3608]
[1764686718381,0.0504806,89000.0,88999.0,0.48435]
[1764686718778,0.5404206,89000.0,88996.0,0.3608]
[1764686718987,0.48994,88997.0,88996.0,0.3608]
[1764686719290,0.0504806,89000.0,88999.0,0.24924]
[1764686719486,0.48994,88997.0,88996.0,0.3608]
[1764686719682,0.2519,88985.0,88983.0,0.3608]
[1764686719887,0.3608,88986.0,88985.0,0.24924]
[1764686720087,0.0112358,88999.0,88985.0,0.3608]
[1764686720502,0.4225162,89000.0,88985.0,0.3608]
[1764686720685,0.63691224,89000.0,88985.0,0.3608]
[1764686720892,0.0112366,88993.0,88985.0,0.3608]
[1764686721088,0.0112367,88991.0,88984.0,0.00016857]
[1764686721287,0.002,88997.0,88984.0,0.00016857]
[1764686721595,0.002,88997.0,88996.0,0.48435]
[1764686723093,0.00740258,89008.0,89005.0,0.48435]
[1764686723282,0.00740258,89008.0,89005.0,0.84515]
[1764686723591,0.3608,89041.0,89019.0,0.48435]
[1764686723892,0.21439604,89040.0,89019.0,0.84515]
[1764686724290,0.53556,89041.0,89019.0,0.84515]
[1764686724693,0.0112305,89040.0,89019.0,0.84695161]
[1764686724887,0.011231,89036.0,89019.0,0.84695161]
[1764686725082,0.08827037,89037.0,89019.0,0.84695161]
[1764686725292,0.3608,89038.0,89027.0,0.3608]
[1764686725481,0.0112317,89032.0,89020.0,0.3608]
[1764686725681,0.2519,89027.0,89026.0,0.00180161]
[1764686725883,0.48994,89027.0,89026.0,0.00180161]
[1764686726278,0.48994,89027.0,89026.0,0.001851]
[1764686726484,0.08918661,89037.0,89026.0,0.001851]
[1764686726780,0.15180076,89046.0,89028.0,0.3608]
[1764686726983,0.00028076,89046.0,89028.0,0.3608]
[1764686727186,0.00028076,89046.0,89029.0,0.0112318]
[1764686727393,0.00028076,89046.0,89037.0,0.001851]
[1764686727698,0.3608,89044.0,89037.0,0.001851]
[1764686727887,0.00028076,89046.0,89045.0,0.48435]
[1764686728196,0.00028076,89046.0,89045.0,0.24924]
[1764686728386,0.488089,89041.0,89033.0,0.00016847]
[1764686728795,0.24353339,89046.0,89033.0,0.00016847]
[1764686728984,0.2519,89034.0,89033.0,0.00016847]
[1764686729184,0.09201339,89046.0,89045.0,0.48435]
[1764686729395,0.0112299,89045.0,89033.0,0.00016847]
[1764686729695,0.09201339,89046.0,89039.0,0.48435]
[1764686729883,0.09201339,89046.0,89045.0,0.48435]
[1764686730882,0.00028076,89046.0,89045.0,0.48435]
[1764686731082,0.00028076,89046.0,89044.0,0.3608]
[1764686731293,0.09148713,89046.0,89045.0,0.48435]
[1764686731495,0.48994,89040.0,89039.0,0.002]
[1764686731686,0.48994,89034.0,89017.0,0.3608]
[1764686732083,0.15152,89029.0,89017.0,0.3608]
[1764686732393,0.62,89040.0,89026.0,0.3608]
[1764686732692,0.08797539,89046.0,89045.0,0.52002]
[1764686733087,0.08797539,89046.0,89037.0,0.00016847]
[1764686733391,0.08797539,89046.0,89045.0,0.002]
[1764686733598,0.61764519,89046.0,89037.0,0.00016847]
[1764686733785,0.08797539,89046.0,89045.0,0.54017]
[1764686733991,0.60641539,89046.0,89041.0,0.00148906]
[1764686734193,0.62,89045.0,89041.0,0.00148906]
[1764686734584,0.26066,89038.0,89037.0,0.00216847]
[1764686734785,0.51844,89038.0,89026.0,0.3608]
[1764686735104,0.3608,89027.0,89016.0,0.3608]
[1764686735484,0.5463514,89033.0,89016.0,0.3608]
[1764686735793,0.00016847,89033.0,89028.0,0.54017]
[1764686735991,0.00016847,89033.0,89032.0,0.54017]
[1764686736191,0.00016847,89033.0,89032.0,0.90097]
[1764686736384,0.36108076,89046.0,89045.0,0.54017]
[1764686736583,0.36108076,89046.0,89045.0,0.53937566]
[1764686736994,0.36108076,89046.0,89041.0,0.27529]
[1764686737183,0.36108076,89046.0,89045.0,0.54017]
[1764686737593,0.36108076,89046.0,89045.0,0.54217]
[1764686737791,0.36108076,89046.0,89037.0,0.00016847]
[1764686737792,0.51129076,89046.0,89037.0,0.00016847]
[1764686737991,0.8904708,89038.0,89037.0,0.00016847]
[1764686738198,0.8904708,89038.0,89015.0,0.3608]
[1764686738199,0.3608,89038.0,89015.0,0.3608]
[1764686738390,0.15934362,89040.0,89037.0,0.54017]
[1764686738595,0.15934362,89040.0,89015.0,0.3608]
[1764686738798,0.3608,89029.0,89015.0,0.3608]
[1764686739002,0.3608,89029.0,89028.0,0.54017]
[1764686739800,0.00016847,89031.0,89030.0,0.54017]
[1764686741190,0.51844,89029.0,89028.0,0.002]
[1764686741391,0.26066,89029.0,89028.0,0.002]
[1764686741792,0.36096847,89031.0,89028.0,0.002]
[1764686742108,0.00016847,89031.0,89030.0,0.54017]
[1764686742302,0.36096847,89031.0,89030.0,0.54017]
[1764686742504,0.36096847,89031.0,89028.0,0.002]
[1764686742699,0.00016847,89031.0,89030.0,0.54017]
[1764686742905,0.36096847,89031.0,89030.0,0.54017]
[1764686743295,0.00016847,89031.0,89030.0,0.54217]
[1764686743494,0.36096847,89031.0,89030.0,0.54217]
[1764686743890,0.00016847,89031.0,89030.0,0.54217]
[1764686744091,0.00016847,89031.0,89030.0,0.002]
[1764686744092,0.87940847,89031.0,89030.0,0.002]
[1764686744605,0.51844,89029.0,89028.0,1e-08]
[1764686744801,0.51844,89029.0,88982.0,0.02950412]
[1764686744802,0.26066,88987.0,88982.0,0.02950412]
[1764686745001,0.3608,88985.0,88984.0,0.54017]
[1764686745507,0.3608,88987.0,88986.0,0.54017]
[1764686745892,0.3608,88987.0,88978.0,0.36096857]
[1764686746096,0.87924,88979.0,88956.0,0.39030412]
[1764686746296,0.3608,88961.0,88960.0,0.54017]
[1764686746702,0.3608,88971.0,88960.0,0.54017]
[1764686746909,0.3608,88961.0,88960.0,0.54017]
[1764686747098,0.3608,88961.0,88952.0,0.00029369]
[1764686747299,0.51844,88953.0,88952.0,0.00029369]
[1764686747899,0.62,88953.0,88952.0,0.00029369]
[1764686748104,0.9808,88953.0,88952.0,0.54046369]
[1764686748411,0.62,88953.0,88952.0,0.54046369]
[1764686748610,0.3608,88961.0,88952.0,0.54046369]
[1764686749007,0.008,88953.0,88952.0,0.54146369]
[1764686749400,0.008,88953.0,88952.0,0.90226369]
[1764686749596,0.00016857,88969.0,88968.0,0.54017]
[1764686749902,0.0112397,88968.0,88952.0,0.00129369]
[1764686750104,0.001,88953.0,88952.0,0.54146369]
[1764686751201,0.001,88953.0,88952.0,1.05270529]
[1764686751405,0.007,88953.0,88952.0,1.05270529]
[1764686751804,0.007,88953.0,88952.0,1.04146369]
[1764686752108,0.3608,88964.0,88963.0,0.54017]
[1764686753218,0.00016857,88969.0,88968.0,0.5514096]
[1764686753511,0.00016857,88969.0,88968.0,0.54017]
[1764686755208,0.01016857,88969.0,88968.0,0.54117]
[1764686755611,0.3608,88995.0,88968.0,0.4122396]
[1764686755810,0.3608,88995.0,88994.0,0.54017]
[1764686757209,0.00016857,89003.0,88994.0,0.54017]
[1764686757417,0.3608,88997.0,88996.0,0.27329]
[1764686757604,0.51844,88995.0,88994.0,0.5]
[1764686757801,0.51844,88995.0,88994.0,0.45]
[1764686758016,0.66965,88995.0,88994.0,0.461]
[1764686758506,0.51944,88995.0,88994.0,0.464]
[1764686758713,0.51944,88995.0,88994.0,0.014]
[1764686758909,0.66965,88995.0,88994.0,0.014]
[1764686759105,1.20465,88995.0,88994.0,0.014]
[1764686759310,0.51944,88995.0,88994.0,0.014]
[1764686759821,1.0544,88995.0,88994.0,0.014]
[1764686760010,0.001,88995.0,88994.0,0.014]
[1764686760313,0.001,88995.0,88994.0,0.28729]
[1764686760611,0.001,88995.0,88994.0,0.55417]
[1764686761521,0.001,88995.0,88994.0,0.91497]
[1764686761812,0.00016857,89003.0,89002.0,0.54017]
[1764686762012,0.00016857,89003.0,89002.0,0.27329]
[1764686762213,0.00016857,89003.0,89002.0,0.54172176]
[1764686762614,0.00016857,89003.0,89002.0,0.00155176]
[1764686762615,0.53245857,89003.0,89002.0,0.00155176]
[1764686762822,0.27104,88995.0,88994.0,0.014]
[1764686763006,0.63184,88995.0,88994.0,0.014]
[1764686763212,0.3608,88995.0,88994.0,0.53889]
[1764686763415,0.89309,88995.0,88994.0,0.003]
[1764686763614,0.89309,88995.0,88963.0,0.02950412]
[1764686763615,0.0112394,88970.0,88952.0,0.36092512]
[1764686763918,0.3608,88961.0,88952.0,0.00012512]
[1764686764117,0.3608,88961.0,88932.0,0.3608]
[1764686764118,0.0112421,88949.0,88932.0,0.3608]
[1764686764305,0.3608,88933.0,88923.0,0.3608]
[1764686764712,0.3608,88924.0,88923.0,0.53589]
[1764686764912,0.3608,88924.0,88919.0,0.00016868]
[1764686764913,0.0112469,88911.0,88892.0,0.3608]
[1764686765115,0.3608,88903.0,88884.0,0.3608]
[1764686765314,0.3608,88903.0,88889.0,0.0112495]
[1764686765613,0.3608,88903.0,88902.0,0.53589]
[1764686765814,8.457e-05,88910.0,88909.0,0.53589]
[1764686766022,8.457e-05,88910.0,88901.0,0.00016868]
[1764686766522,0.3608,88903.0,88902.0,0.53589]
[1764686766717,8.457e-05,88910.0,88901.0,0.00016868]
[1764686766912,8.457e-05,88910.0,88902.0,0.2840179]
[1764686767111,8.457e-05,88910.0,88909.0,0.27277]
[1764686767416,8.457e-05,88910.0,88901.0,0.00016868]
[1764686767719,0.0112471,88909.0,88901.0,0.00016868]
[1764686768017,0.1612,88901.0,88872.0,0.3608]
[1764686768221,0.3608,88877.0,88868.0,0.3608]
[1764686768420,9.778e-05,88876.0,88866.0,0.0112524]
[1764686768617,9.778e-05,88876.0,88875.0,0.27277]
[1764686768819,9.778e-05,88876.0,88875.0,0.53589]
[1764686769016,0.3608,88901.0,88900.0,0.53589]
[1764686769321,0.3608,88903.0,88902.0,0.53589]
[1764686769910,0.00016878,88909.0,88895.0,0.0112487]
[1764686770117,0.3608,88903.0,88892.0,0.00011316]
[1764686770420,0.3638,88901.0,88892.0,0.00011316]
[1764686770617,0.0112482,88900.0,88892.0,0.00011316]
[1764686770822,0.3608,88893.0,88892.0,0.00011316]
[1764686771327,0.3608,88893.0,88892.0,0.53600316]
[1764686771512,0.3638,88901.0,88896.0,0.0112486]
[1764686771714,0.003,88901.0,88893.0,0.0112491]
[1764686772313,0.3608,88899.0,88892.0,0.00011316]
[1764686773034,0.0112485,88898.0,88892.0,0.00011316]
[1764686773622,0.53229,88893.0,88892.0,0.00011316]
[1764686774526,0.3628,88899.0,88893.0,0.0112491]
[1764686774726,0.3628,88899.0,88896.0,0.00105415]
[1764686774925,0.27104,88897.0,88896.0,0.00105415]
[1764686775310,0.3638,88899.0,88896.0,0.00105415]
[1764686775813,0.3638,88899.0,88892.0,0.00011316]
[1764686775814,0.3628,88899.0,88897.0,0.00105415]
[1764686776020,0.3608,88899.0,88892.0,0.00011316]
[1764686776230,0.9043383,88899.0,88898.0,0.00114703]
[1764686776624,0.3608,88907.0,88898.0,0.53589]
[1764686776814,0.00016878,88909.0,88908.0,0.53589]
[1764686777022,0.3608,88934.0,88926.0,0.0112449]
[1764686777228,0.3608,88934.0,88908.0,0.3608]
[1764686777229,0.0112441,88933.0,88918.0,0.3608]
[1764686777427,0.17058812,88930.0,88919.0,0.0112458]
[1764686777624,0.3608,88934.0,88922.0,0.0112453]
[1764686777831,0.3608,88934.0,88933.0,0.011244]
[1764686778125,0.3608,88942.0,88930.0,0.3608]
[1764686778126,0.36096869,88942.0,88930.0,0.3608]
[1764686778327,0.00016869,88942.0,88939.0,0.0112432]
[1764686778525,0.00016869,88942.0,88941.0,0.53589]
[1764686778919,0.001,88934.0,88931.0,0.0112442]
[1764686779231,0.003,88934.0,88931.0,0.0112443]
[1764686779530,0.001,88934.0,88933.0,0.53589]
[1764686779713,0.00016869,88942.0,88930.0,0.3608]